[Event "Late-Titled-Tuesday-Blitz-June-04-2024"]
[Site "Chess.com"]
[Date "2024.06.04"]
[Round "8"]
[White "Tunahan_Makaraci"]
[Black "King_Deded4d5"]
[Result "1-0"]
[WhiteElo "2574"]
[BlackElo "2442"]
[TimeControl "180+1"]
[EndTime "15:27:28 PDT"]
[Termination "Tunahan_Makaraci won by resignation"]

1. e4 {[%clk 0:03:00.9]} 1... e6 {[%clk 0:02:58.1]} 2. d4 {[%clk 0:03:00.2]}
2... d5 {[%clk 0:02:58.7]} 3. exd5 {[%clk 0:02:57.5]} 3... exd5 {[%clk
0:02:59.6]} 4. Bf4 {[%clk 0:02:57.3]} 4... Bd6 {[%clk 0:02:57.8]} 5. Qd2 {[%clk
0:02:56.2]} 5... Bf5 {[%clk 0:02:53.9]} 6. Nc3 {[%clk 0:02:53]} 6... Nf6 {[%clk
0:02:52.7]} 7. O-O-O {[%clk 0:02:51.9]} 7... O-O {[%clk 0:02:51.3]} 8. f3 {[%clk
0:02:52.1]} 8... Bg6 {[%clk 0:02:31.9]} 9. g4 {[%clk 0:02:51]} 9... c6 {[%clk
0:02:16.5]} 10. h4 {[%clk 0:02:50.8]} 10... h5 {[%clk 0:02:16.4]} 11. g5 {[%clk
0:02:38.7]} 11... Ne8 {[%clk 0:02:14.1]} 12. Nh3 {[%clk 0:02:35.8]} 12... Nd7
{[%clk 0:02:08.6]} 13. Bd3 {[%clk 0:02:32.5]} 13... Bxd3 {[%clk 0:01:49.6]} 14.
Qxd3 {[%clk 0:02:32.4]} 14... g6 {[%clk 0:01:50.1]} 15. Rde1 {[%clk 0:02:22.5]}
15... Nb6 {[%clk 0:01:42.7]} 16. Kb1 {[%clk 0:02:20.5]} 16... a5 {[%clk
0:01:32]} 17. Bxd6 {[%clk 0:02:17.1]} 17... Nxd6 {[%clk 0:01:27.7]} 18. Nf4
{[%clk 0:02:17]} 18... Qd7 {[%clk 0:01:04.9]} 19. Nxg6 {[%clk 0:02:03.4]} 19...
fxg6 {[%clk 0:01:05.8]} 20. Qxg6+ {[%clk 0:02:03.6]} 20... Kh8 {[%clk
0:01:04.1]} 21. Qh6+ {[%clk 0:01:58]} 21... Kg8 {[%clk 0:01:02]} 22. Re6 {[%clk
0:01:57.2]} 22... Nf5 {[%clk 0:00:57.6]} 23. Rg6+ {[%clk 0:01:38]} 23... Ng7
{[%clk 0:00:57.2]} 24. Qxh5 {[%clk 0:01:23.9]} 24... Rae8 {[%clk 0:00:29.3]} 25.
Qg4 {[%clk 0:01:03.1]} 25... Qf5 {[%clk 0:00:14.7]} 26. Rf6 {[%clk 0:00:56.1]}
26... Rxf6 {[%clk 0:00:12.5]} 27. gxf6 {[%clk 0:00:57]} 27... Qxf6 {[%clk
0:00:13.4]} 28. b3 {[%clk 0:00:54.6]} 28... Qf5 {[%clk 0:00:09.8]} 29. Qg3
{[%clk 0:00:53.6]} 29... Kh7 {[%clk 0:00:09.8]} 30. Rg1 {[%clk 0:00:53.1]} 30...
Re7 {[%clk 0:00:10.1]} 31. Ne2 {[%clk 0:00:49]} 31... Nh5 {[%clk 0:00:07.9]} 32.
Qg8+ {[%clk 0:00:48.6]} 32... Kh6 {[%clk 0:00:07.8]} 33. Rg5 {[%clk 0:00:41.4]}
33... Qf7 {[%clk 0:00:05.7]} 34. Qh8+ {[%clk 0:00:19.8]} 34... Qh7 {[%clk
0:00:06.4]} 35. Qf8+ {[%clk 0:00:20.1]} 35... Rg7 {[%clk 0:00:07.1]} 36. Qd6+
{[%clk 0:00:06.2]} 36... Rg6 {[%clk 0:00:07.1]} 37. Qe5 {[%clk 0:00:05.2]} 37...
Nd7 {[%clk 0:00:06.6]} 38. Qe3 {[%clk 0:00:03.7]} 38... Kg7 {[%clk 0:00:05.3]}
39. Rxg6+ {[%clk 0:00:02.4]} 39... Qxg6 {[%clk 0:00:04.9]} 40. Qe7+ {[%clk
0:00:03]} 40... Qf7 {[%clk 0:00:05.5]} 41. Qg5+ {[%clk 0:00:03.3]} 41... Qg6
{[%clk 0:00:05.4]} 42. Qe7+ {[%clk 0:00:03.6]} 42... Qf7 {[%clk 0:00:06]} 43.
Qg5+ {[%clk 0:00:03.9]} 43... Kh7 {[%clk 0:00:06.7]} 44. Nc3 {[%clk 0:00:03.2]}
44... Ndf6 {[%clk 0:00:07]} 45. Qf5+ {[%clk 0:00:02.9]} 45... Qg6 {[%clk
0:00:07.1]} 46. Qe6 {[%clk 0:00:03.5]} 46... Kh6 {[%clk 0:00:04.3]} 47. Qe7
{[%clk 0:00:03.4]} 47... Nf4 {[%clk 0:00:04.4]} 48. Qf8+ {[%clk 0:00:03.5]}
48... Kh5 {[%clk 0:00:04.4]} 49. Qh8+ {[%clk 0:00:03.1]} 49... Qh6 {[%clk
0:00:05]} 50. Qc8 {[%clk 0:00:02.1]} 50... Qg7 {[%clk 0:00:03.6]} 51. Qf5+
{[%clk 0:00:01.9]} 51... Kxh4 {[%clk 0:00:02.2]} 52. Qxf4+ {[%clk 0:00:02.3]}
52... Kh3 {[%clk 0:00:02.9]} 53. Qf5+ {[%clk 0:00:02.6]} 53... Kg3 {[%clk
0:00:03.2]} 54. Qe5+ {[%clk 0:00:03]} 54... Kxf3 {[%clk 0:00:03.6]} 55. Kb2
{[%clk 0:00:03.6]} 55... Qg6 {[%clk 0:00:02.8]} 56. Qe6 {[%clk 0:00:03.8]} 56...
Ne4 {[%clk 0:00:03.5]} 57. Qxg6 {[%clk 0:00:03.6]} 1-0

[Event "Late-Titled-Tuesday-Blitz-June-04-2024"]
[Site "Chess.com"]
[Date "2024.06.04"]
[Round "8"]
[White "TERMINATOR_PC"]
[Black "IngOscarArdila"]
[Result "1-0"]
[WhiteElo "2593"]
[BlackElo "2283"]
[TimeControl "180+1"]
[EndTime "15:27:28 PDT"]
[Termination "TERMINATOR_PC won by resignation"]

1. d4 {[%clk 0:03:00.9]} 1... Nf6 {[%clk 0:02:59.5]} 2. Bf4 {[%clk 0:02:58.9]}
2... e6 {[%clk 0:02:57.9]} 3. e3 {[%clk 0:02:58.2]} 3... Be7 {[%clk 0:02:56.8]}
4. c3 {[%clk 0:02:51.7]} 4... O-O {[%clk 0:02:56.2]} 5. Nd2 {[%clk 0:02:51.1]}
5... c5 {[%clk 0:02:55.5]} 6. Ngf3 {[%clk 0:02:49.7]} 6... Nc6 {[%clk
0:02:55.3]} 7. Bd3 {[%clk 0:02:47.5]} 7... d6 {[%clk 0:02:54.3]} 8. O-O {[%clk
0:02:43.9]} 8... b6 {[%clk 0:02:54.1]} 9. a4 {[%clk 0:02:38.5]} 9... a5 {[%clk
0:02:52.4]} 10. h3 {[%clk 0:02:34.8]} 10... Bb7 {[%clk 0:02:50.7]} 11. Qe2
{[%clk 0:02:31.2]} 11... Re8 {[%clk 0:02:46.3]} 12. e4 {[%clk 0:02:31]} 12...
cxd4 {[%clk 0:02:43.4]} 13. cxd4 {[%clk 0:02:31.4]} 13... Nb4 {[%clk 0:02:43.4]}
14. Bb5 {[%clk 0:02:27.6]} 14... Nd7 {[%clk 0:02:40.9]} 15. Rfc1 {[%clk
0:02:21.5]} 15... Rc8 {[%clk 0:02:40.1]} 16. Nf1 {[%clk 0:02:20.1]} 16... Bc6
{[%clk 0:02:08.2]} 17. Bxc6 {[%clk 0:02:07.5]} 17... Rxc6 {[%clk 0:02:07.1]} 18.
Rxc6 {[%clk 0:02:07.3]} 18... Nxc6 {[%clk 0:02:08]} 19. Rc1 {[%clk 0:02:07.2]}
19... Nb4 {[%clk 0:02:06.6]} 20. Qb5 {[%clk 0:01:52.1]} 20... Nf6 {[%clk
0:02:04.2]} 21. Ng3 {[%clk 0:01:49.5]} 21... d5 {[%clk 0:02:01.3]} 22. Bc7
{[%clk 0:01:42.7]} 22... Qc8 {[%clk 0:01:58.4]} 23. e5 {[%clk 0:01:42.3]} 23...
Ne4 {[%clk 0:01:50.1]} 24. Qxb6 {[%clk 0:01:27.8]} 24... Qd7 {[%clk 0:01:39.3]}
25. Qb5 {[%clk 0:01:11.7]} 25... Qc8 {[%clk 0:01:17.4]} 26. Kh2 {[%clk 0:01:10]}
26... Qa8 {[%clk 0:01:13.2]} 27. Qxa5 {[%clk 0:01:06.4]} 27... Nd3 {[%clk
0:00:53.4]} 28. Ra1 {[%clk 0:00:52.7]} 28... Nxb2 {[%clk 0:00:40.2]} 29. Qxa8
{[%clk 0:00:48.2]} 29... Rxa8 {[%clk 0:00:39.9]} 30. a5 {[%clk 0:00:49.1]} 30...
Nc4 {[%clk 0:00:18.6]} 31. Nxe4 {[%clk 0:00:37.3]} 31... dxe4 {[%clk 0:00:18.5]}
32. Ne1 {[%clk 0:00:35]} 32... Ra6 {[%clk 0:00:17.8]} 33. Nc2 {[%clk 0:00:33.1]}
33... f6 {[%clk 0:00:17.8]} 34. exf6 {[%clk 0:00:28.5]} 34... gxf6 {[%clk
0:00:18.7]} 35. Ra4 {[%clk 0:00:27.3]} 35... Nd2 {[%clk 0:00:17.9]} 36. Bb6
{[%clk 0:00:22.3]} 36... f5 {[%clk 0:00:17.4]} 37. Kg1 {[%clk 0:00:20.7]} 37...
Kf7 {[%clk 0:00:17.2]} 38. Ra2 {[%clk 0:00:18.1]} 38... Nc4 {[%clk 0:00:17.2]}
39. Bc7 {[%clk 0:00:11.7]} 39... Ke8 {[%clk 0:00:17]} 40. Ne3 {[%clk 0:00:10.9]}
40... Nxe3 {[%clk 0:00:14.5]} 41. fxe3 {[%clk 0:00:11.8]} 41... Kd7 {[%clk
0:00:14.6]} 42. Bb6 {[%clk 0:00:11.2]} 42... Bd8 {[%clk 0:00:14.9]} 43. Bxd8
{[%clk 0:00:11]} 43... Kxd8 {[%clk 0:00:15.8]} 44. Kf2 {[%clk 0:00:11.8]} 44...
Kd7 {[%clk 0:00:16.1]} 45. Kg3 {[%clk 0:00:12.4]} 45... Kc6 {[%clk 0:00:15.6]}
46. Kf4 {[%clk 0:00:12.6]} 46... Kd5 {[%clk 0:00:16.1]} 47. Kg5 {[%clk
0:00:11.4]} 47... Kc4 {[%clk 0:00:14.1]} 48. Ra1 {[%clk 0:00:08.3]} 48... Kd3
{[%clk 0:00:14.2]} 49. Ra3+ {[%clk 0:00:08.5]} 49... Kc4 {[%clk 0:00:13.8]} 50.
Kf4 {[%clk 0:00:09]} 50... Kd5 {[%clk 0:00:13.4]} 51. g3 {[%clk 0:00:08.6]}
51... h6 {[%clk 0:00:13.1]} 52. g4 {[%clk 0:00:08.1]} 52... fxg4 {[%clk
0:00:13]} 53. hxg4 {[%clk 0:00:09]} 53... e5+ {[%clk 0:00:12.3]} 54. dxe5 {[%clk
0:00:08.8]} 54... Ra8 {[%clk 0:00:10.8]} 55. a6 {[%clk 0:00:08.9]} 55... Rg8
{[%clk 0:00:11.1]} 56. a7 {[%clk 0:00:08.8]} 56... Rf8+ {[%clk 0:00:11.5]} 57.
Kg3 {[%clk 0:00:08.9]} 57... Ra8 {[%clk 0:00:12.4]} 58. Ra5+ {[%clk 0:00:09]}
58... Ke6 {[%clk 0:00:11.8]} 59. Kf4 {[%clk 0:00:09.5]} 59... Rf8+ {[%clk
0:00:11.4]} 60. Kxe4 {[%clk 0:00:09.2]} 60... Ra8 {[%clk 0:00:12.1]} 61. Ra6+
{[%clk 0:00:09.6]} 1-0

[Event "Late-Titled-Tuesday-Blitz-June-04-2024"]
[Site "Chess.com"]
[Date "2024.06.04"]
[Round "8"]
[White "bazar-wokzal"]
[Black "grzechu96"]
[Result "0-1"]
[WhiteElo "2588"]
[BlackElo "2790"]
[TimeControl "180+1"]
[EndTime "15:27:31 PDT"]
[Termination "grzechu96 won on time"]

1. e4 {[%clk 0:03:00.9]} 1... c5 {[%clk 0:03:00.1]} 2. c3 {[%clk 0:03:00.3]}
2... Nf6 {[%clk 0:02:58.9]} 3. e5 {[%clk 0:03:00]} 3... Nd5 {[%clk 0:02:59.5]}
4. d4 {[%clk 0:03:00.5]} 4... cxd4 {[%clk 0:03:00.4]} 5. cxd4 {[%clk 0:03:01]}
5... d6 {[%clk 0:03:00.4]} 6. Bc4 {[%clk 0:03:00.4]} 6... e6 {[%clk 0:03:00.8]}
7. Nf3 {[%clk 0:02:59.9]} 7... Nc6 {[%clk 0:03:01.3]} 8. O-O {[%clk 0:02:59.7]}
8... Be7 {[%clk 0:03:01.7]} 9. Qe2 {[%clk 0:03:00.1]} 9... O-O {[%clk
0:02:59.1]} 10. Qe4 {[%clk 0:03:00.3]} 10... Bd7 {[%clk 0:02:57]} 11. Bd3 {[%clk
0:02:59.7]} 11... f5 {[%clk 0:02:50.5]} 12. exf6 {[%clk 0:02:59.4]} 12... Nxf6
{[%clk 0:02:50.8]} 13. Qe2 {[%clk 0:02:59.6]} 13... Nb4 {[%clk 0:02:49.8]} 14.
Bc4 {[%clk 0:02:59.5]} 14... d5 {[%clk 0:02:48.5]} 15. Bb3 {[%clk 0:02:59.6]}
15... Qb6 {[%clk 0:02:49]} 16. Nc3 {[%clk 0:02:59.5]} 16... Ne4 {[%clk
0:02:26.8]} 17. Nxe4 {[%clk 0:02:52.7]} 17... Bb5 {[%clk 0:02:26.9]} 18. Qe3
{[%clk 0:02:31]} 18... Bxf1 {[%clk 0:02:22.7]} 19. Nc5 {[%clk 0:02:26.3]} 19...
Bc4 {[%clk 0:01:55.3]} 20. Nd7 {[%clk 0:02:08.9]} 20... Qa6 {[%clk 0:01:15.6]}
21. Nxf8 {[%clk 0:01:57.6]} 21... Bxb3 {[%clk 0:01:13]} 22. Qxb3 {[%clk
0:01:28.2]} 22... Rxf8 {[%clk 0:01:12.8]} 23. Bd2 {[%clk 0:01:27.6]} 23... Nd3
{[%clk 0:00:52.2]} 24. Be3 {[%clk 0:01:19.8]} 24... Bd6 {[%clk 0:00:41.8]} 25.
Rd1 {[%clk 0:01:15.9]} 25... Nb4 {[%clk 0:00:39.2]} 26. a3 {[%clk 0:01:12.9]}
26... Nc6 {[%clk 0:00:39.6]} 27. Ng5 {[%clk 0:01:09.7]} 27... Rf6 {[%clk
0:00:35.7]} 28. Qc2 {[%clk 0:01:02.2]} 28... g6 {[%clk 0:00:35.7]} 29. h4 {[%clk
0:01:01.6]} 29... Qc4 {[%clk 0:00:31.1]} 30. Qxc4 {[%clk 0:01:00.2]} 30... dxc4
{[%clk 0:00:31.6]} 31. Ne4 {[%clk 0:01:00.6]} 31... Be7 {[%clk 0:00:27.1]} 32.
Nxf6+ {[%clk 0:00:58.2]} 32... Bxf6 {[%clk 0:00:28]} 33. h5 {[%clk 0:00:47.6]}
33... gxh5 {[%clk 0:00:27]} 34. Kf1 {[%clk 0:00:45.6]} 34... Kf7 {[%clk
0:00:27.1]} 35. Ke2 {[%clk 0:00:45.9]} 35... Ne7 {[%clk 0:00:25.4]} 36. Rh1
{[%clk 0:00:42.1]} 36... Kg6 {[%clk 0:00:24.8]} 37. Rh3 {[%clk 0:00:40.4]} 37...
Nd5 {[%clk 0:00:16.4]} 38. a4 {[%clk 0:00:29]} 38... b6 {[%clk 0:00:16.2]} 39.
Rh1 {[%clk 0:00:28.1]} 39... a6 {[%clk 0:00:16.2]} 40. Rc1 {[%clk 0:00:22.6]}
40... b5 {[%clk 0:00:16.5]} 41. axb5 {[%clk 0:00:23]} 41... axb5 {[%clk
0:00:17.4]} 42. Ra1 {[%clk 0:00:23.3]} 42... h4 {[%clk 0:00:14.1]} 43. Ra6
{[%clk 0:00:22.4]} 43... Kf5 {[%clk 0:00:13.8]} 44. Ra7 {[%clk 0:00:21.1]} 44...
h5 {[%clk 0:00:13.1]} 45. Rb7 {[%clk 0:00:19.4]} 45... b4 {[%clk 0:00:12.9]} 46.
Rb8 {[%clk 0:00:18.8]} 46... Kg6 {[%clk 0:00:07.9]} 47. Rc8 {[%clk 0:00:17.6]}
47... c3 {[%clk 0:00:07.6]} 48. bxc3 {[%clk 0:00:17.7]} 48... bxc3 {[%clk
0:00:08.2]} 49. Kd3 {[%clk 0:00:17.7]} 49... Kf5 {[%clk 0:00:08.7]} 50. Ra8
{[%clk 0:00:14.9]} 50... Kg6 {[%clk 0:00:08.8]} 51. Bc1 {[%clk 0:00:11.7]} 51...
Kf5 {[%clk 0:00:08.8]} 52. Ra7 {[%clk 0:00:10.8]} 52... Kg6 {[%clk 0:00:08.4]}
53. Ke4 {[%clk 0:00:10.5]} 53... Bg5 {[%clk 0:00:05.3]} 54. Ba3 {[%clk
0:00:05.6]} 54... c2 {[%clk 0:00:04.5]} 55. Ra6 {[%clk 0:00:03.4]} 55... Kf6
{[%clk 0:00:04.7]} 56. Rc6 {[%clk 0:00:01.4]} 56... Nb4 {[%clk 0:00:02.7]} 0-1

[Event "Late-Titled-Tuesday-Blitz-June-04-2024"]
[Site "Chess.com"]
[Date "2024.06.04"]
[Round "8"]
[White "Darkbluelord"]
[Black "N_I_Chess"]
[Result "0-1"]
[WhiteElo "2135"]
[BlackElo "2296"]
[TimeControl "180+1"]
[EndTime "15:27:34 PDT"]
[Termination "N_I_Chess won by resignation"]

1. e4 {[%clk 0:03:00.9]} 1... Nf6 {[%clk 0:00:52.1]} 2. e5 {[%clk 0:02:59.8]}
2... Nd5 {[%clk 0:00:52]} 3. c4 {[%clk 0:03:00.3]} 3... Nb6 {[%clk 0:00:51.6]}
4. d4 {[%clk 0:03:01.2]} 4... d6 {[%clk 0:00:50.4]} 5. f4 {[%clk 0:03:01.7]}
5... g6 {[%clk 0:00:49.4]} 6. Nf3 {[%clk 0:03:01.1]} 6... Bg7 {[%clk 0:00:42.9]}
7. Be3 {[%clk 0:03:01.1]} 7... dxe5 {[%clk 0:00:40.8]} 8. fxe5 {[%clk
0:03:00.5]} 8... Bg4 {[%clk 0:00:41]} 9. Nc3 {[%clk 0:02:57.2]} 9... Nc6 {[%clk
0:00:40.5]} 10. b3 {[%clk 0:02:51.8]} 10... Qd7 {[%clk 0:00:28.5]} 11. Be2
{[%clk 0:02:51.3]} 11... O-O-O {[%clk 0:00:24.3]} 12. c5 {[%clk 0:02:37.4]}
12... Nd5 {[%clk 0:00:23.3]} 13. Nxd5 {[%clk 0:02:32.3]} 13... Qxd5 {[%clk
0:00:24.2]} 14. O-O {[%clk 0:02:28.2]} 14... Qe4 {[%clk 0:00:24.3]} 15. Bf2
{[%clk 0:01:56]} 15... f6 {[%clk 0:00:14.9]} 16. h3 {[%clk 0:01:51.9]} 16... Be6
{[%clk 0:00:14]} 17. Nd2 {[%clk 0:01:14.1]} 17... Qd5 {[%clk 0:00:14]} 18. Bf3
{[%clk 0:01:01.9]} 18... Qd7 {[%clk 0:00:13.8]} 19. Bxc6 {[%clk 0:00:30.7]}
19... Qxc6 {[%clk 0:00:13]} 20. exf6 {[%clk 0:00:25.7]} 20... exf6 {[%clk
0:00:12.8]} 21. Nf3 {[%clk 0:00:24.2]} 21... Bd5 {[%clk 0:00:12.8]} 22. b4
{[%clk 0:00:21.8]} 22... Rhe8 {[%clk 0:00:11]} 23. a4 {[%clk 0:00:21.3]} 23...
f5 {[%clk 0:00:11]} 24. b5 {[%clk 0:00:21.7]} 24... Bxf3 {[%clk 0:00:10.8]} 25.
bxc6 {[%clk 0:00:20.1]} 25... Bxd1 {[%clk 0:00:11]} 26. cxb7+ {[%clk 0:00:20.2]}
26... Kxb7 {[%clk 0:00:11.9]} 27. Rfxd1 {[%clk 0:00:20]} 27... Rd5 {[%clk
0:00:12.4]} 28. Rab1+ {[%clk 0:00:20.2]} 28... Kc6 {[%clk 0:00:12.8]} 29. Rb4
{[%clk 0:00:15.9]} 29... Red8 {[%clk 0:00:12.6]} 30. Kh2 {[%clk 0:00:15.3]}
30... Rxc5 {[%clk 0:00:10.2]} 31. dxc5 {[%clk 0:00:12]} 31... Rxd1 {[%clk
0:00:09.9]} 32. Rb8 {[%clk 0:00:12.9]} 32... Be5+ {[%clk 0:00:09]} 33. Bg3
{[%clk 0:00:11.1]} 33... Bxg3+ {[%clk 0:00:09.1]} 34. Kxg3 {[%clk 0:00:11.1]}
34... Kxc5 {[%clk 0:00:09.2]} 35. Rh8 {[%clk 0:00:10.7]} 35... Rd7 {[%clk
0:00:09.5]} 36. Ra8 {[%clk 0:00:10.2]} 36... Kb6 {[%clk 0:00:09.4]} 37. Kf4
{[%clk 0:00:10.4]} 37... c5 {[%clk 0:00:08.8]} 38. Rc8 {[%clk 0:00:09.6]} 38...
Rc7 {[%clk 0:00:09]} 39. Rb8+ {[%clk 0:00:09.6]} 39... Ka5 {[%clk 0:00:09.6]}
40. Ke3 {[%clk 0:00:07.6]} 40... c4 {[%clk 0:00:09.1]} 41. Kd2 {[%clk
0:00:08.5]} 41... c3+ {[%clk 0:00:09.4]} 42. Kc2 {[%clk 0:00:08.9]} 42... Kxa4
{[%clk 0:00:10.3]} 43. Rb1 {[%clk 0:00:07.6]} 43... a5 {[%clk 0:00:10.4]} 44.
Ra1+ {[%clk 0:00:08]} 44... Kb4 {[%clk 0:00:10.7]} 45. Rb1+ {[%clk 0:00:08.2]}
45... Kc4 {[%clk 0:00:11.2]} 46. Ra1 {[%clk 0:00:08.6]} 46... Re7 {[%clk
0:00:10.9]} 47. Rxa5 {[%clk 0:00:08]} 47... Re2+ {[%clk 0:00:11.4]} 48. Kd1
{[%clk 0:00:08.1]} 48... Rxg2 {[%clk 0:00:11.9]} 49. Ra7 {[%clk 0:00:05.6]}
49... Rh2 {[%clk 0:00:10.1]} 50. Rc7+ {[%clk 0:00:05.7]} 50... Kd4 {[%clk
0:00:10.5]} 51. Rd7+ {[%clk 0:00:06]} 51... Ke4 {[%clk 0:00:11.1]} 52. Re7+
{[%clk 0:00:06.2]} 52... Kf4 {[%clk 0:00:11.7]} 53. Rc7 {[%clk 0:00:05.9]} 53...
Rxh3 {[%clk 0:00:12]} 54. Rc4+ {[%clk 0:00:05.5]} 54... Ke5 {[%clk 0:00:11.6]}
55. Kc2 {[%clk 0:00:05.3]} 55... h5 {[%clk 0:00:11.2]} 56. Rc5+ {[%clk
0:00:05.3]} 56... Kf4 {[%clk 0:00:10.8]} 57. Rc4+ {[%clk 0:00:05.5]} 57... Kg5
{[%clk 0:00:11.5]} 58. Rc8 {[%clk 0:00:04.6]} 58... h4 {[%clk 0:00:10.8]} 59.
Rg8 {[%clk 0:00:05.5]} 59... Rg3 {[%clk 0:00:11.1]} 60. Rg7 {[%clk 0:00:06.4]}
60... h3 {[%clk 0:00:11.4]} 61. Rf7 {[%clk 0:00:07]} 61... h2 {[%clk 0:00:11.4]}
62. Rh7 {[%clk 0:00:07.9]} 62... Rg2+ {[%clk 0:00:11.8]} 63. Kxc3 {[%clk
0:00:07.1]} 63... Kg4 {[%clk 0:00:12.7]} 64. Kd3 {[%clk 0:00:07.3]} 64... g5
{[%clk 0:00:13.6]} 65. Rh6 {[%clk 0:00:07.7]} 65... Kg3 {[%clk 0:00:13.9]} 66.
Rh7 {[%clk 0:00:08.2]} 66... Rg1 {[%clk 0:00:13.4]} 67. Rh6 {[%clk 0:00:09.1]}
67... h1=Q {[%clk 0:00:13.6]} 68. Rg6 {[%clk 0:00:09.7]} 68... Qe4+ {[%clk
0:00:13.3]} 69. Kc3 {[%clk 0:00:09.9]} 69... Rc1+ {[%clk 0:00:13.4]} 0-1

[Event "Late-Titled-Tuesday-Blitz-June-04-2024"]
[Site "Chess.com"]
[Date "2024.06.04"]
[Round "8"]
[White "ArtemDyachuk"]
[Black "JSPrepz"]
[Result "1/2-1/2"]
[WhiteElo "2692"]
[BlackElo "2840"]
[TimeControl "180+1"]
[EndTime "15:27:39 PDT"]
[Termination "Game drawn - insufficient material"]

1. e4 {[%clk 0:03:00.9]} 1... e5 {[%clk 0:02:55.8]} 2. Nf3 {[%clk 0:03:00.4]}
2... Nc6 {[%clk 0:02:42.5]} 3. Bb5 {[%clk 0:02:59.8]} 3... f5 {[%clk 0:02:42.2]}
4. d3 {[%clk 0:02:58.7]} 4... fxe4 {[%clk 0:02:41.4]} 5. dxe4 {[%clk 0:02:59.5]}
5... Nf6 {[%clk 0:02:41.1]} 6. Nc3 {[%clk 0:02:58.7]} 6... Bb4 {[%clk
0:02:40.9]} 7. O-O {[%clk 0:02:57.8]} 7... Bxc3 {[%clk 0:02:41.8]} 8. bxc3
{[%clk 0:02:57.3]} 8... d6 {[%clk 0:02:42.5]} 9. Bc4 {[%clk 0:02:49.6]} 9... Qe7
{[%clk 0:02:38.9]} 10. Bg5 {[%clk 0:02:24.2]} 10... Be6 {[%clk 0:02:38.4]} 11.
Qd3 {[%clk 0:01:55.4]} 11... O-O {[%clk 0:02:36.8]} 12. Rab1 {[%clk 0:01:19.2]}
12... Rab8 {[%clk 0:02:05.3]} 13. Bd5 {[%clk 0:00:53.9]} 13... Bxd5 {[%clk
0:01:49.5]} 14. Bxf6 {[%clk 0:00:45.4]} 14... Bxe4 {[%clk 0:01:08.2]} 15. Bxe7
{[%clk 0:00:14.8]} 15... Bxd3 {[%clk 0:01:08.5]} 16. Bxf8 {[%clk 0:00:15.2]}
16... Bxf1 {[%clk 0:01:08.9]} 17. Bxd6 {[%clk 0:00:15.7]} 17... cxd6 {[%clk
0:01:07.4]} 18. Kxf1 {[%clk 0:00:15.6]} 18... Kf8 {[%clk 0:00:51]} 19. Ke2
{[%clk 0:00:15.4]} 19... Ke7 {[%clk 0:00:51]} 20. Ke3 {[%clk 0:00:15.1]} 20...
Na5 {[%clk 0:00:49.8]} 21. Rb4 {[%clk 0:00:08.2]} 21... Rc8 {[%clk 0:00:48.3]}
22. Kd3 {[%clk 0:00:06.1]} 22... b6 {[%clk 0:00:48]} 23. Rh4 {[%clk 0:00:05.6]}
23... h6 {[%clk 0:00:47.9]} 24. Rg4 {[%clk 0:00:05.8]} 24... Kf6 {[%clk
0:00:48.4]} 25. h4 {[%clk 0:00:05.4]} 25... Nb7 {[%clk 0:00:48.4]} 26. h5 {[%clk
0:00:03.8]} 26... Nc5+ {[%clk 0:00:34.3]} 27. Ke2 {[%clk 0:00:03.3]} 27... Ne6
{[%clk 0:00:34.2]} 28. Nd2 {[%clk 0:00:03.5]} 28... d5 {[%clk 0:00:27.7]} 29. g3
{[%clk 0:00:02.6]} 29... Rxc3 {[%clk 0:00:25]} 30. Rg6+ {[%clk 0:00:03]} 30...
Kf7 {[%clk 0:00:24.5]} 31. Nf3 {[%clk 0:00:03.4]} 31... Rxc2+ {[%clk 0:00:20.8]}
32. Kd1 {[%clk 0:00:03.3]} 32... Rxf2 {[%clk 0:00:20.5]} 33. Nxe5+ {[%clk
0:00:03.4]} 33... Ke7 {[%clk 0:00:21.1]} 34. Nc6+ {[%clk 0:00:03.7]} 34... Kd6
{[%clk 0:00:19.3]} 35. Nd4 {[%clk 0:00:03.5]} 35... Rf6 {[%clk 0:00:19.3]} 36.
Rxf6 {[%clk 0:00:03.9]} 36... gxf6 {[%clk 0:00:19.5]} 37. Nf5+ {[%clk
0:00:04.8]} 37... Ke5 {[%clk 0:00:18.8]} 38. Nxh6 {[%clk 0:00:05.7]} 38... f5
{[%clk 0:00:16.8]} 39. Ng8 {[%clk 0:00:04]} 39... Nf8 {[%clk 0:00:15.6]} 40. Ne7
{[%clk 0:00:04.1]} 40... Ke6 {[%clk 0:00:15.3]} 41. Nc6 {[%clk 0:00:03.9]} 41...
a5 {[%clk 0:00:15.9]} 42. Kd2 {[%clk 0:00:03.5]} 42... Nh7 {[%clk 0:00:16.3]}
43. Nd4+ {[%clk 0:00:03.3]} 43... Ke5 {[%clk 0:00:16.4]} 44. Ke3 {[%clk
0:00:03.6]} 44... Nf6 {[%clk 0:00:16]} 45. Nf3+ {[%clk 0:00:03.3]} 45... Kd6
{[%clk 0:00:16.1]} 46. h6 {[%clk 0:00:01.9]} 46... Ng4+ {[%clk 0:00:16.5]} 47.
Kf4 {[%clk 0:00:02.5]} 47... Nxh6 {[%clk 0:00:17.4]} 48. Kg5 {[%clk 0:00:03.1]}
48... Ng4 {[%clk 0:00:15.4]} 49. Kxf5 {[%clk 0:00:03]} 49... Ne3+ {[%clk
0:00:13.7]} 50. Kf4 {[%clk 0:00:02.3]} 50... Ng2+ {[%clk 0:00:14.1]} 51. Kf5
{[%clk 0:00:02.5]} 51... b5 {[%clk 0:00:13.6]} 52. g4 {[%clk 0:00:02.6]} 52...
b4 {[%clk 0:00:14.2]} 53. g5 {[%clk 0:00:02.7]} 53... Ne3+ {[%clk 0:00:13.5]}
54. Kf4 {[%clk 0:00:02.7]} 54... Ng2+ {[%clk 0:00:13.9]} 55. Kf5 {[%clk
0:00:03.1]} 55... a4 {[%clk 0:00:11.2]} 56. g6 {[%clk 0:00:02.7]} 56... Ke7
{[%clk 0:00:11.8]} 57. Ke5 {[%clk 0:00:03.1]} 57... b3 {[%clk 0:00:11.3]} 58.
axb3 {[%clk 0:00:02.9]} 58... axb3 {[%clk 0:00:11.9]} 59. Nd2 {[%clk 0:00:02.9]}
59... b2 {[%clk 0:00:09.4]} 60. Kxd5 {[%clk 0:00:03.2]} 60... Nf4+ {[%clk
0:00:06.7]} 61. Kd4 {[%clk 0:00:02.3]} 61... Nxg6 {[%clk 0:00:03.1]} 62. Kc3
{[%clk 0:00:02.6]} 62... Ne5 {[%clk 0:00:04]} 63. Kxb2 {[%clk 0:00:02.6]}
1/2-1/2